fUSD/lending_fUSD_20251025
["ID","MTS","AMOUNT","RATE_DAILY","PERIOD"]
[392357977,1761400240162,-983136.40477317,0.00032,2]
[392357978,1761400240171,-207.52758569,0.00032,120]
[392357979,1761400240180,-1603.50619466,0.00032,120]
[392357980,1761400240190,-494.346,0.00032017,31]
[392357981,1761400240199,-168.0,0.00032017,7]
[392357982,1761400240209,-653.0,0.00032284,7]
[392357983,1761400240219,-168.0,0.00032505,2]
[392357985,1761400240228,-2500.0,0.00032557,2]
[392357987,1761400240238,-3612.53642103,0.00032557,2]
[392357988,1761400240248,-400.30852022,0.00032559,2]
[392357989,1761400240260,-160.02458898,0.00032569,15]
[392357990,1761400240270,-20455.23928852,0.00032569,2]
[392357991,1761400240279,-200.0,0.00032607,2]
[392357992,1761400240288,-151.0,0.00032654,14]
[392357993,1761400240297,-938.11,0.00032656,9]
[392357994,1761400240306,-271.58402972,0.00032656,2]
[392357995,1761400240316,-500.0,0.00032656,7]
[392357996,1761400240325,-3196.19,0.00032656,9]
[392357997,1761400240335,-503.33918024,0.00032656,9]
[392357998,1761400240343,-63272.63292164,0.00032657,2]
[392357999,1761400240355,-7470.70574247,0.00032657,2]
[392358000,1761400240364,-96955.28267625,0.00032657,2]
[392358003,1761400242860,-8.15592405,0.00032657,2]
[392358022,1761400262788,280.29,0.00015899,2]
[392358023,1761400262999,280.29,0.00016736,2]
[392358024,1761400263198,280.29,0.00017573,2]
[392358025,1761400263445,280.29,0.0001841,2]
[392358026,1761400263604,280.29,0.00019247,2]
[392358290,1761400519032,362.52351944,0.00036671,30]
[392358307,1761400522590,2000.0,0.00036671,30]
[392358332,1761400555965,2000.0,0.00036671,30]
[392358335,1761400580177,150.0,0.00036671,30]
[392358337,1761400590250,1100.0,0.00036671,30]
[392358396,1761400735457,-150.0,0.00029683,120]
[392358469,1761401091154,10000.0,0.00031507,120]
[392358506,1761401362153,-280.29,0.00020084,2]
[392358507,1761401362174,-280.29,0.0002092,2]
[392358508,1761401362197,-280.29,0.00021757,2]
[392358509,1761401362220,-280.29,0.00022594,2]
[392358510,1761401362242,-280.29,0.00023431,2]
[392358511,1761401362264,-3347.575806,0.00024239,2]
[392358566,1761401432067,-806.65025707,0.00024239,2]
[392358567,1761401432126,-115.84508223,0.00024239,2]
[392358568,1761401432135,-208.72776732,0.00024268,2]
[392358574,1761401437782,-71.56223268,0.00024268,2]
[392358575,1761401437792,-280.29,0.00025104,2]
[392358576,1761401437801,-280.29,0.00025941,2]
[392358577,1761401437810,-280.29,0.00026778,2]
[392358578,1761401437821,-280.29,0.00027615,2]
[392358579,1761401437831,-166.66,0.00028392,30]
[392358580,1761401437843,-280.29,0.00028452,2]
[392358581,1761401437853,-166.66,0.00028989,30]
[392358582,1761401437863,-500.0,0.00029236,2]
[392358583,1761401437873,-500.0,0.00029236,2]
[392358584,1761401437882,-500.0,0.00029236,2]
[392358585,1761401437891,-500.0,0.00029236,2]
[392358586,1761401437900,-500.0,0.00029236,2]
[392358587,1761401437910,-500.0,0.00029236,2]
[392358588,1761401437919,-500.0,0.00029236,2]
[392358589,1761401437929,-500.0,0.00029236,2]
[392358590,1761401437938,-500.0,0.00029236,2]
[392358592,1761401437947,-500.0,0.00029236,2]
[392358593,1761401437956,-500.0,0.00029236,2]
[392358594,1761401437965,-196.93892,0.00029236,2]
[392358595,1761401437974,-500.0,0.00029236,2]
[392358596,1761401437984,-500.0,0.00029236,2]
[392358597,1761401437993,-500.0,0.00029236,2]
[392358598,1761401438003,-1281.02134359,0.00029243,2]
[392358599,1761401438013,-280.29,0.00029289,2]
[392358600,1761401438022,-150.0,0.00029564,7]
[392358601,1761401438036,-150.28936814,0.00029564,7]
[392358602,1761401438045,-150.0,0.00029564,7]
[392358603,1761401438055,-150.0,0.00029564,7]
[392358604,1761401438064,-150.3726306,0.00029564,7]
[392358605,1761401438074,-150.0,0.00029564,7]
[392358606,1761401438083,-150.0,0.00029564,7]
[392358607,1761401438093,-150.0,0.00029564,7]
[392358608,1761401438103,-150.0,0.00029564,7]
[392358610,1761401438112,-150.0,0.00029564,7]
[392358611,1761401438121,-150.0,0.00029564,7]
[392358612,1761401438131,-150.0,0.00029564,7]
[392358613,1761401438141,-150.0,0.00029564,7]
[392358614,1761401438151,-150.0,0.00029564,7]
[392358615,1761401438160,-252.6099485,0.00029564,7]
[392358616,1761401438170,-150.0,0.00029564,7]
[392358617,1761401438179,-150.0,0.00029564,7]
[392358618,1761401438189,-166.66,0.00029587,30]
[392358619,1761401438199,-200.0,0.00029588,2]
[392358620,1761401438208,-300.0,0.00029627,7]
[392358621,1761401438218,-78.30474954,0.00029661,2]
[392358622,1761401438230,-121.69525046,0.00029661,2]
[392358623,1761401438240,-150.0,0.00029683,2]
[392358624,1761401438249,-178.77,0.00029713,2]
[392358625,1761401438259,-1546.424236,0.00029728,2]
[392358629,1761401439911,-7699.625764,0.00029728,2]
[392358630,1761401439920,-2934.91631805,0.000299,3]
[392358631,1761401439933,-251.51860545,0.000299,3]
[392358632,1761401439945,-1058.5650765,0.000299,3]
[392358633,1761401439955,-56.9549234,0.00029927,2]
[392358639,1761401446009,-2021.07466924,0.00029927,2]
[392358640,1761401446070,-2909.23554148,0.00029927,2]
[392358641,1761401446079,-90.76445852,0.00029928,2]
[392358708,1761401529910,160.0,0.000315,120]
[392358748,1761401613624,170.0,1e-06,2]
[392358774,1761401739722,5000.0,0.00036641,120]
[392358793,1761401825815,588.28272227,0.00036641,30]
[392358794,1761401831647,151.0,0.00036641,30]
[392358989,1761402307498,1737.0,0.00015,2]
[392358990,1761402307540,33117.23674817,0.00015,2]
[392358992,1761402341358,-151.0,0.00023881,2]
[392358993,1761402341378,-43.99,0.00023882,2]
[392358994,1761402360660,4824.62325183,8e-05,2]
[392358995,1761402360684,3746.31497681,8e-05,2]
[392359000,1761402393131,-151.0,0.00023911,2]
[392359001,1761402393152,-15.11816985,0.00024029,2]
[392359070,1761402473091,31253.68502319,0.00015,2]
[392359071,1761402473120,4420.47321541,0.00015,2]
[392359076,1761402487218,177.19,0.00029881,120]
[392359079,1761402497794,1912.64817575,0.0001,2]
[392359080,1761402508999,2708.21051931,0.0001,2]
[392359082,1761402515250,-178.08804554,0.000154,2]
[392359083,1761402516844,-180.31596083,0.000154,2]
[392359155,1761402632037,-143.91226811,0.000154,2]
[392359158,1761402632047,-534.59098548,0.0002,2]
[392359159,1761402632153,-760.86143897,0.0002,2]
[392359160,1761402632164,-196.84500363,0.0002,2]
[392359161,1761402632173,-156.20183015,0.00024029,2]
[392359162,1761402632183,-154.9,0.00027657,2]
[392359163,1761402632192,-19.74415189,0.00028999,2]
[392359164,1761402632202,-480.25584811,0.00028999,2]
[392359165,1761402632211,-299.65988,0.00028999,2]
[392359166,1761402632221,-250.26751721,0.00029,2]
[392359174,1761402637986,-12985.49995748,0.00029,2]
[392359175,1761402638036,-0.01931681,0.00029,2]
[392359176,1761402638052,-784.0,0.00029,2]
[392359179,1761402640314,-38.4424065,0.00029,2]
[392359180,1761402640324,-150.0,0.00029466,7]
[392359181,1761402640335,-150.0,0.00029466,7]
[392359182,1761402640345,-0.35996914,0.00029466,7]
[392359183,1761402640357,-149.64003086,0.00029466,7]
[392359184,1761402640367,-244.62036252,0.00029466,7]
[392359185,1761402640377,-150.0,0.00029466,7]
[392359186,1761402640387,-361.8999104,0.00029586,2]
[392359187,1761402640396,-928.52285622,0.000296,2]
[392359188,1761402640454,-71.47714378,0.000296,2]
[392359189,1761402640464,-151.0,0.00029626,7]
[392359190,1761402640473,-190.10882081,0.00029628,2]
[392359191,1761402640483,-782.40176063,0.00029629,2]
[392359192,1761402640495,-7497.25105907,0.00029629,2]
[392359200,1761402644459,-639.61364336,0.00029629,2]
[392359201,1761402644646,-18.45757444,0.00029629,2]
[392359217,1761402646074,-2367.59999998,0.00029629,2]
[392359218,1761402646233,-34245.56092193,0.00029629,2]
[392359285,1761402725518,151.0,0.00036612,30]
[392359286,1761402726084,414.0,0.00036612,30]
[392359287,1761402726131,151.0,0.00036612,30]
[392359288,1761402727462,429.318,0.00036612,30]
[392359289,1761402727502,151.0,0.00036612,30]
[392359290,1761402727648,445.202766,0.00036612,30]
[392359292,1761402728026,461.67526834,0.00036612,30]
[392359293,1761402728167,8709.259603,7.945e-05,2]
[392359294,1761402728643,478.75725327,0.00036612,30]
[392359295,1761402729269,496.47127164,0.00036612,30]
[392359296,1761402729876,514.84070869,0.00036612,30]
[392359297,1761402730673,533.88981491,0.00036612,30]
[392359338,1761402827560,600.0,0.00036612,30]
[392359344,1761402853749,1400.0,0.00036612,30]
[392359359,1761402943883,309.8461765,0.00036612,30]
[392359376,1761403030547,353.28525023,0.00036612,30]
[392359400,1761403112483,-250.0,0.00017,2]
[392359595,1761403328256,286.91819764,0.00036614,30]
[392359662,1761403345771,-157.38170294,0.00025605,2]
[392359743,1761403422677,188.64,0.00013699,2]
[392359792,1761403505305,194.0,0.00030896,120]
[392359900,1761403644938,150.0,0.00028033,120]
[392359925,1761403768106,-188.64,0.00020187,2]
[392359926,1761403768127,-151.0,0.00024638,2]
[392359927,1761403768147,-151.0,0.00024778,2]
[392359928,1761403768168,-188.64,0.00026676,2]
[392359929,1761403768190,-194.920281,0.0002801,2]
[392359930,1761403768211,-150.0,0.00028033,2]
[392359931,1761403768234,-181.17747794,0.00028151,2]
[392359943,1761403825200,156.91,0.00014099,2]
[392359944,1761403825622,156.91,0.0001498,2]
[392359960,1761403832283,-156.91,0.00015861,2]
[392359961,1761403832293,-156.91,0.00016742,2]
[392359962,1761403832302,-114.69527032,0.00017623,2]
[392359963,1761403832318,-42.21472968,0.00017623,2]
[392359964,1761403832328,-156.91,0.00018505,2]
[392359965,1761403832338,-156.91,0.00019386,2]
[392359966,1761403832350,-49.32436897,0.00020267,2]
[392359967,1761403832361,-107.58563103,0.00020267,2]
[392359968,1761403832370,-154.06436497,0.00021148,2]
[392359969,1761403832402,-2.84563503,0.00021148,2]
[392359970,1761403832411,-156.91,0.00022029,2]
[392359971,1761403832427,-156.91,0.00022911,2]
[392359972,1761403832437,-156.91,0.00023792,2]
[392359973,1761403832448,-156.91,0.00024673,2]
[392359974,1761403832458,-156.91,0.00025554,2]
[392359975,1761403832470,-156.91,0.00026435,2]
[392359976,1761403832481,-156.91,0.00027316,2]
[392359977,1761403832492,-730.91094495,0.00028151,2]
[392359978,1761403832555,-5324.34157711,0.00028151,2]
[392359979,1761403832565,-246.0,0.00028197,2]
[392359981,1761403832586,-300.0,0.00028197,2]
[392359983,1761403832601,-500.0,0.00028197,2]
[392359986,1761403832621,-500.0,0.00028197,2]
[392359987,1761403832636,-500.0,0.00028197,2]
[392359989,1761403832649,-500.0,0.00028197,2]
[392359990,1761403832661,-500.0,0.00028197,2]
[392359991,1761403832674,-500.0,0.00028197,2]
[392359992,1761403832687,-607.258893,0.00028197,2]
[392359993,1761403832700,-500.0,0.00028197,2]
[392359995,1761403832713,-500.0,0.00028197,2]
[392359997,1761403832726,-156.91,0.00028198,2]
[392359999,1761403832738,-13974.7175312,0.000282,2]
[392360008,1761403838265,-500.0,0.00028197,2]
[392360009,1761403838277,-500.0,0.00028197,2]
[392360010,1761403838288,-500.0,0.00028197,2]
[392360011,1761403838298,-500.0,0.00028197,2]
[392360012,1761403838309,-500.0,0.00028197,2]
[392360013,1761403838320,-588.78930819,0.00028197,2]
[392360014,1761403838334,-58.14284062,0.00028197,2]
[392360015,1761403838349,-500.0,0.00028197,2]
[392360016,1761403838360,-500.0,0.00028197,2]
[392360017,1761403838371,-500.0,0.00028197,2]
[392360018,1761403838383,-500.0,0.00028197,2]
[392360019,1761403838394,-500.0,0.00028197,2]
[392360020,1761403838404,-500.0,0.00028197,2]
[392360021,1761403838417,-500.0,0.00028197,2]
[392360022,1761403838427,-500.0,0.00028197,2]
[392360023,1761403838438,-500.0,0.00028197,2]
[392360024,1761403838448,-500.0,0.00028197,2]
[392360025,1761403838459,-500.0,0.00028197,2]
[392360026,1761403838470,-500.0,0.00028197,2]
[392360027,1761403838481,-500.0,0.00028197,2]
[392360028,1761403838492,-500.0,0.00028197,2]
[392360029,1761403838502,-6577.8224688,0.000282,2]
[392360030,1761403838513,-1000.0,0.00028237,2]
[392360031,1761403838526,-150.0,0.00028295,2]
[392360032,1761403838537,-273.73,0.00028366,2]
[392360033,1761403838547,-250.0,0.00028395,2]
[392360034,1761403838559,-666.0,0.00028569,3]
[392360035,1761403838571,-5000.0,0.00028711,2]
[392360036,1761403838581,-152.0,0.00029002,3]
[392360037,1761403838592,-163.2,0.00029009,2]
[392360038,1761403838602,-150.0,0.00029071,7]
[392360039,1761403838613,-154.12747994,0.00029071,7]
[392360040,1761403838624,-150.0,0.00029071,7]
[392360041,1761403838634,-150.00000001,0.00029071,7]
[392360042,1761403838645,-2742.26993103,0.00029127,2]
[392360043,1761403838662,-509.01284787,0.00029127,2]
[392360044,1761403838673,-395.477,0.00029166,22]
[392360045,1761403838684,-5.07414963,0.00029166,2]
[392360051,1761403840827,-345.19580551,0.00029166,2]
[392360052,1761403840836,-1061.89409884,0.00029166,2]
[392360053,1761403840855,-501.09959929,0.00029166,2]
[392360054,1761403840866,-288.71084132,0.00029166,2]
[392360055,1761403840946,-16558.0108202,0.00029166,2]
[392360056,1761403840956,-160.02458894,0.00029166,15]
[392360057,1761403840966,-176.76056241,0.00029167,2]
[392360058,1761403840977,-151.0,0.0002922,7]
[392360059,1761403840986,-151.0,0.0002922,7]
[392360060,1761403840996,-2367.2941055,0.00029223,2]
[392360061,1761403841005,-129495.4561391,0.00029223,2]
[392360062,1761403841014,-9326.554558,0.0002923,2]
[392360063,1761403841023,-151.0,0.00029244,7]
[392360064,1761403841032,-220.9,0.00029246,2]
[392360065,1761403841042,-23215.0760326,0.00029247,2]
[392360066,1761403841051,-220.9,0.00029247,2]
[392360067,1761403841061,-151.0,0.00029249,2]
[392360068,1761403841070,-151.0,0.00029249,2]
[392360069,1761403841080,-151.0,0.00029249,2]
[392360070,1761403841090,-151.0,0.00029249,2]
[392360071,1761403841099,-151.0,0.00029249,2]
[392360072,1761403841109,-151.0,0.00029249,2]
[392360073,1761403841119,-151.0,0.00029249,2]
[392360074,1761403841128,-151.0,0.00029249,2]
[392360075,1761403841137,-151.0,0.00029249,2]
[392360076,1761403841147,-151.0,0.00029249,2]
[392360077,1761403841156,-151.0,0.00029254,7]
[392360078,1761403841166,-899.02,0.00029256,9]
[392360079,1761403841175,-500.0,0.00029256,2]
[392360080,1761403841185,-500.0,0.00029256,9]
[392360081,1761403841194,-500.0,0.00029256,2]
[392360082,1761403841203,-150.0,0.00029256,9]
[392360084,1761403841212,-500.0,0.00029256,9]
[392360085,1761403841222,-150.0,0.00029256,9]
[392360086,1761403841231,-150.0,0.00029256,2]
[392360087,1761403841240,-150.0,0.00029256,2]
[392360088,1761403841249,-150.0,0.00029256,9]
[392360089,1761403841258,-150.0,0.00029256,9]
[392360090,1761403841267,-150.0,0.00029256,2]
[392360091,1761403841276,-204.82792549,0.00029256,9]
[392360092,1761403841287,-500.0,0.00029256,9]
[392360093,1761403841296,-500.0,0.00029256,9]
[392360094,1761403841306,-3211.65,0.00029256,9]
[392360095,1761403841315,-11607.5380163,0.00029256,2]
[392360097,1761403841324,-151.0,0.00029257,30]
[392360098,1761403841333,-602.422992,0.00029257,30]
[392360099,1761403841346,-602.422992,0.00029257,30]
[392360100,1761403841355,-602.422992,0.00029257,30]
[392360101,1761403841365,-151.0,0.00029257,30]
[392360102,1761403841375,-602.422992,0.00029257,30]
[392360103,1761403841385,-151.0,0.00029257,30]
[392360104,1761403841396,-151.0,0.00029257,30]
[392360105,1761403841407,-151.0,0.00029257,30]
[392360106,1761403841419,-399.427968,0.00029257,30]
[392360107,1761403841430,-151.0,0.00029257,30]
[392360108,1761403841440,-151.0,0.00029257,30]
[392360109,1761403841450,-640.094176,0.00029257,30]
[392360110,1761403841461,-399.427968,0.00029257,30]
[392360111,1761403841471,-151.0,0.00029257,30]
[392360112,1761403841483,-151.0,0.00029257,30]
[392360113,1761403841492,-640.094176,0.00029257,30]
[392360114,1761403841502,-151.0,0.00029257,30]
[392360115,1761403841512,-399.427968,0.00029257,30]
[392360116,1761403841524,-151.0,0.00029257,30]
[392360117,1761403841534,-640.094176,0.00029257,30]
[392360118,1761403841544,-70421.89161252,0.00029257,2]
[392360119,1761403843332,-151.0,0.00029257,30]
[392360120,1761403843346,-151.0,0.00029257,30]
[392360121,1761403843356,-399.427968,0.00029257,30]
[392360122,1761403843366,-176.67744445,0.00029257,30]
[392360123,1761403843377,-463.41673155,0.00029257,30]
[392360124,1761403843387,-151.0,0.00029257,30]
[392360125,1761403843396,-365.70493026,0.00029257,2]
[392360126,1761403843407,-598.43424186,0.00029257,2]
[392360127,1761403843421,-1411.02473523,0.00029257,2]
[392360128,1761403843432,-1509.6599435,0.00029257,2]
[392360129,1761403843443,-732.92298725,0.00029257,2]
[392360130,1761403843453,-729.83940943,0.00029257,2]
[392360131,1761403843465,-509.92245797,0.00029257,2]
[392360132,1761403843475,-447.75010881,0.00029257,2]
[392360133,1761403843616,-578.34,0.00029257,2]
[392360134,1761403843677,-390.3849186,0.00029257,2]
[392360135,1761403843738,-17429.76055088,0.00029257,2]
[392360175,1761403848460,932.6997093,0.00036614,30]
[392360179,1761403863743,2500.0,0.00031017,120]
[392360180,1761403863831,2500.0,0.00028348,120]
[392360181,1761403863944,2500.0,0.00028893,120]
[392360183,1761403865756,2500.0,0.00028893,120]
[392360184,1761403865855,281.47171346,0.00028893,120]
[392360185,1761403866843,4000.0,0.00031017,120]
[392360186,1761403869472,300.0,0.00031017,120]
[392360187,1761403870074,195.0,0.00031017,120]
[392360188,1761403870175,195.0,0.00028272,120]
[392360191,1761403870273,195.0,0.00028566,120]
[392360246,1761403926815,195.0,0.00030336,120]
[392360247,1761403926940,195.0,0.00027639,120]
[392360248,1761403933117,151.0,0.00036614,30]
[392360249,1761403933847,151.0,0.00036614,30]
[392360250,1761403934338,151.0,0.00036614,30]
[392360251,1761403934959,151.0,0.00036614,30]
[392360252,1761403935584,151.0,0.00036614,30]
[392360253,1761403936217,151.0,0.00036614,30]
[392360254,1761403936853,151.0,0.00036614,30]
[392360255,1761403937557,151.0,0.00036614,30]
[392360256,1761403938223,151.0,0.00036614,30]
[392360257,1761403938863,151.0,0.00036614,30]
[392360258,1761403939568,151.0,0.00036614,30]
[392360259,1761403940234,151.0,0.00036614,30]
[392360260,1761403940905,151.0,0.00036614,30]
[392360261,1761403941537,151.0,0.00036614,30]
[392360351,1761404084522,1000.0,0.00036615,30]
[392360367,1761404108622,250.0,0.00030884,120]
[392360593,1761404179864,1000.0,0.00036615,30]
[392360594,1761404187802,2000.0,0.00036615,30]
[392360596,1761404221075,400.0,0.00036615,30]
[392360601,1761404333761,1000.0,0.00029618,120]
[392360602,1761404333987,1000.0,0.00029646,120]
[392360603,1761404334209,1000.0,0.00029673,120]
[392360604,1761404334450,931.10070392,0.000297,120]
[392360706,1761404602069,1092.0,0.00036618,30]
[392360718,1761404604588,1092.0,0.00036618,30]
[392360803,1761404967145,-335.95248103,0.000248,2]
[392360804,1761404967166,-500.0,0.00024932,2]
[392360805,1761404967185,-500.0,0.00024932,2]
[392360806,1761404967204,-500.0,0.00024932,2]
[392360807,1761404967223,-151.0,0.00025058,2]
[392360808,1761404967243,-216.7864857,0.00025378,2]
[392360809,1761404967263,-179.12,0.00025478,2]
[392360810,1761404967282,-101.22056561,0.00026432,2]
[392360824,1761405031593,-1098.77943439,0.00026432,2]
[392360825,1761405031603,-300.0,0.00026432,2]
[392360826,1761405031613,-1200.0,0.00026432,2]
[392360827,1761405031623,-300.0,0.00026432,2]
[392360828,1761405031633,-300.0,0.00026432,2]
[392360829,1761405031643,-150.0,0.00026433,4]
[392360830,1761405031653,-150.0,0.00026433,4]
[392360831,1761405031663,-150.0,0.00026433,4]
[392360832,1761405031673,-150.0,0.00026433,4]
[392360833,1761405031683,-155.80232479,0.00026433,4]
[392360834,1761405031693,-150.0,0.00026433,4]
[392360835,1761405031702,-153.17893229,0.00026433,4]
[392360836,1761405031712,-1600.0,0.00026705,2]
[392360837,1761405031722,-500.0,0.00026706,2]
[392360838,1761405031733,-500.0,0.00026706,2]
[392360839,1761405031744,-500.0,0.00026706,2]
[392360840,1761405031754,-500.0,0.00026706,2]
[392360841,1761405031764,-500.0,0.00026706,2]
[392360842,1761405031774,-500.0,0.00026706,2]
[392360843,1761405031785,-500.0,0.00026706,2]
[392360844,1761405031795,-500.0,0.00026706,2]
[392360845,1761405031805,-500.0,0.00026706,2]
[392360846,1761405031815,-500.0,0.00026706,2]
[392360847,1761405031825,-500.0,0.00026706,2]
[392360848,1761405031835,-500.0,0.00026706,2]
[392360849,1761405031845,-623.02876589,0.00026706,2]
[392360850,1761405031855,-500.0,0.00026706,2]
[392360851,1761405031865,-556.51925306,0.00026706,2]
[392360852,1761405031876,-500.0,0.00026706,2]
[392360853,1761405031886,-500.0,0.00026706,2]
[392360854,1761405031897,-500.0,0.00026706,2]
[392360855,1761405031910,-500.0,0.00026706,2]
[392360856,1761405031920,-500.0,0.00026706,2]
[392360857,1761405031930,-500.0,0.00026706,2]
[392360858,1761405031942,-500.0,0.00026706,2]
[392360859,1761405031952,-500.0,0.00026706,2]
[392360860,1761405031961,-500.0,0.00026706,2]
[392360861,1761405031972,-500.0,0.00026706,2]
[392360862,1761405031987,-500.0,0.00026706,2]
[392360864,1761405031997,-500.0,0.00026706,2]
[392360865,1761405032007,-500.0,0.00026706,2]
[392360866,1761405032016,-500.0,0.00026706,2]
[392360868,1761405032026,-500.0,0.00026706,2]
[392360870,1761405032035,-500.0,0.00026706,2]
[392360871,1761405032045,-500.0,0.00026706,2]
[392360872,1761405032054,-500.0,0.00026706,2]
[392360873,1761405032064,-500.0,0.00026706,2]
[392360875,1761405032073,-500.0,0.00026706,2]
[392360877,1761405032083,-500.0,0.00026706,2]
[392360880,1761405032093,-52.93844605,0.00026706,2]
[392360882,1761405032106,-447.06155395,0.00026706,2]
[392360884,1761405032116,-500.0,0.00026706,2]
[392360885,1761405032126,-500.0,0.00026706,2]
[392360886,1761405032136,-236.6093723,0.00026706,2]
[392360887,1761405032146,-500.0,0.00026706,2]
[392360888,1761405032156,-500.0,0.00026706,2]
[392360889,1761405032166,-500.0,0.00026706,2]
[392360890,1761405032175,-500.0,0.00026706,2]
[392360891,1761405032185,-500.0,0.00026706,2]
[392360892,1761405032194,-166.66,0.00026707,30]
[392360893,1761405032203,-1020.58,0.00027,2]
[392360894,1761405032213,-505.0,0.00027132,2]
[392360895,1761405032223,-150.0,0.00027167,4]
[392360896,1761405032232,-250.0,0.00027263,2]
[392360897,1761405032242,-166.66,0.00027269,30]
[392360898,1761405032252,-250.0,0.0002728,2]
[392360899,1761405032261,-3322.28,0.00027323,2]
[392360900,1761405032271,-151.0,0.00027349,7]
[392360901,1761405032280,-1206.81,0.00027351,2]
[392360902,1761405032290,-944.57,0.00027352,2]
[392360903,1761405032299,-2910.0,0.00027354,2]
[392360904,1761405032309,-1020.58,0.000275,2]
[392360905,1761405032319,-1206.81,0.00027625,14]
[392360906,1761405032329,-6105.45,0.00027651,2]
[392360907,1761405032339,-206.51,0.00027663,2]
[392360908,1761405032348,-151.0,0.00027682,2]
[392360909,1761405032357,-151.0,0.00027682,2]
[392360910,1761405032367,-151.0,0.00027682,2]
[392360911,1761405032377,-151.0,0.00027682,2]
[392360912,1761405032387,-151.0,0.00027682,2]
[392360913,1761405032396,-151.0,0.00027682,2]
[392360914,1761405032405,-151.0,0.00027682,2]
[392360915,1761405032415,-151.0,0.00027682,2]
[392360916,1761405032425,-151.0,0.00027682,2]
[392360917,1761405032434,-151.0,0.00027682,2]
[392360918,1761405032443,-151.0,0.00027682,2]
[392360919,1761405032453,-151.0,0.00027682,2]
[392360920,1761405032463,-151.0,0.00027682,2]
[392360921,1761405032472,-151.0,0.00027682,2]
[392360922,1761405032481,-151.0,0.00027682,2]
[392360923,1761405032571,-151.0,0.00027682,2]
[392360924,1761405032581,-151.0,0.00027682,2]
[392360925,1761405032590,-151.0,0.00027682,2]
[392360926,1761405032601,-151.0,0.00027682,2]
[392360927,1761405032611,-151.0,0.00027682,2]
[392360928,1761405032621,-151.0,0.00027682,2]
[392360929,1761405032630,-151.0,0.00027682,2]
[392360930,1761405032639,-151.0,0.00027682,2]
[392360931,1761405032648,-151.0,0.00027682,2]
[392360932,1761405032658,-151.0,0.00027682,2]
[392360933,1761405032669,-151.0,0.00027682,2]
[392360934,1761405032679,-151.0,0.00027682,2]
[392360935,1761405032688,-151.0,0.00027682,2]
[392360936,1761405032698,-151.0,0.00027682,2]
[392360937,1761405032707,-151.0,0.00027682,2]
[392360938,1761405032716,-151.0,0.00027682,2]
[392360939,1761405032726,-151.0,0.00027682,2]
[392360940,1761405032734,-151.0,0.00027682,2]
[392360941,1761405032744,-151.0,0.00027682,2]
[392360942,1761405032755,-151.0,0.00027682,2]
[392360943,1761405032764,-151.0,0.00027682,2]
[392360944,1761405032775,-151.0,0.00027682,2]
[392360945,1761405032785,-151.0,0.00027682,2]
[392360946,1761405032795,-151.0,0.00027682,2]
[392360947,1761405032805,-151.0,0.00027682,2]
[392360948,1761405032815,-1750.0,0.000277,2]
[392360949,1761405032825,-2751.0,0.00027707,2]